fUSD/lending_fUSD_20241107
["ID","MTS","AMOUNT","RATE_DAILY","PERIOD"]
[341539805,1730969449049,-500.0,0.0003041,4]
[341539806,1730969449058,-500.0,0.0003041,4]
[341539807,1730969449070,-500.0,0.0003041,4]
[341539808,1730969449084,-714.7,0.0003041,4]
[341539809,1730969449094,-691.21,0.0003041,4]
[341539810,1730969449103,-500.0,0.0003041,4]
[341539811,1730969449113,-500.0,0.0003041,4]
[341539812,1730969449124,-500.0,0.0003041,4]
[341539813,1730969449134,-500.0,0.0003041,4]
[341539814,1730969449144,-781.67,0.0003041,4]
[341539815,1730969449154,-500.0,0.0003041,4]
[341539816,1730969449163,-500.0,0.0003041,4]
[341539817,1730969449173,-500.0,0.0003041,4]
[341539818,1730969449182,-500.0,0.0003041,4]
[341539819,1730969449192,-790.01,0.0003041,4]
[341539820,1730969449202,-500.0,0.0003041,4]
[341539821,1730969449212,-500.0,0.0003041,4]
[341539822,1730969449222,-500.0,0.0003041,4]
[341539823,1730969449231,-500.0,0.0003041,4]
[341539824,1730969449241,-500.0,0.0003041,4]
[341539825,1730969449251,-1766.81,0.0003041,4]
[341539826,1730969449260,-500.0,0.0003041,4]
[341539827,1730969449270,-500.0,0.0003041,4]
[341539828,1730969449279,-500.0,0.0003041,4]
[341539829,1730969449288,-500.0,0.0003041,4]
[341539830,1730969449298,-558.64,0.0003041,4]
[341539831,1730969449307,-500.0,0.0003041,4]
[341539832,1730969449317,-500.0,0.0003041,4]
[341539833,1730969449326,-500.0,0.0003041,4]
[341539834,1730969449336,-500.0,0.0003041,4]
[341539835,1730969449345,-512.63,0.0003041,4]
[341539836,1730969449354,-614.97,0.0003041,4]
[341539837,1730969449364,-500.0,0.0003041,4]
[341539838,1730969449374,-1123.27,0.0003041,4]
[341539839,1730969449383,-855.37,0.0003041,4]
[341539840,1730969449393,-347.31843345,0.0003041,4]
[341539841,1730969449402,-500.0,0.0003041,4]
[341539842,1730969449411,-1530.99,0.0003041,4]
[341539843,1730969449420,-500.0,0.0003041,4]
[341539844,1730969449429,-500.0,0.0003041,4]
[341539845,1730969449439,-500.0,0.0003041,4]
[341539846,1730969449448,-500.0,0.0003041,4]
[341539847,1730969449458,-151.0,0.0003041,7]
[341539848,1730969449468,-500.0,0.0003041,4]
[341539849,1730969449477,-500.0,0.0003041,4]
[341539850,1730969449488,-941.06,0.0003041,4]
[341539851,1730969449498,-582.33,0.0003041,4]
[341539852,1730969449507,-2053.62,0.0003041,4]
[341539853,1730969449517,-1254.38,0.0003041,4]
[341539854,1730969449526,-500.0,0.0003041,4]
[341539855,1730969449536,-500.0,0.0003041,4]
[341539856,1730969449546,-500.0,0.0003041,4]
[341539857,1730969449556,-541.32,0.0003041,4]
[341539858,1730969449567,-1414.2,0.0003041,4]
[341539859,1730969449576,-633.67,0.0003041,4]
[341539860,1730969449586,-524.98,0.0003041,4]
[341539861,1730969449595,-500.0,0.0003041,4]
[341539862,1730969449605,-500.0,0.0003041,4]
[341539863,1730969449614,-1860.34,0.0003041,4]
[341539864,1730969449623,-1552.21,0.0003041,4]
[341539865,1730969449633,-500.0,0.0003041,4]
[341539866,1730969449642,-942.16,0.0003041,4]
[341539867,1730969449652,-739.81,0.0003041,4]
[341539868,1730969449661,-151.0,0.0003041,7]
[341539869,1730969449671,-1151.18,0.0003041,4]
[341539870,1730969449680,-515.87,0.0003041,4]
[341539871,1730969449690,-151.0,0.0003041,7]
[341539872,1730969449700,-500.0,0.0003041,4]
[341539873,1730969449709,-500.0,0.0003041,4]
[341539874,1730969449719,-1373.61,0.0003041,4]
[341539875,1730969449728,-500.0,0.0003041,4]
[341539876,1730969449738,-500.0,0.0003041,4]
[341539877,1730969449748,-500.0,0.0003041,4]
[341539878,1730969449758,-200.035982,0.0003041,7]
[341539879,1730969449767,-200.035982,0.0003041,7]
[341539880,1730969449777,-500.0,0.0003041,4]
[341539881,1730969449790,-1050.29,0.0003041,4]
[341539882,1730969449800,-200.035982,0.0003041,7]
[341539883,1730969449809,-200.035982,0.0003041,7]
[341539884,1730969449820,-1012.14,0.0003041,4]
[341539885,1730969449831,-257.16513341,0.0003041,4]
[341539886,1730969449840,-1231.12,0.0003041,4]
[341539887,1730969449850,-789.68,0.0003041,4]
[341539888,1730969449860,-500.0,0.0003041,4]
[341539889,1730969449870,-500.0,0.0003041,4]
[341539890,1730969449880,-845.86,0.0003041,4]
[341539891,1730969449889,-636.53,0.0003041,4]
[341539892,1730969449899,-500.0,0.0003041,4]
[341539893,1730969449909,-1573.2,0.0003041,4]
[341539894,1730969449919,-500.0,0.0003041,4]
[341539895,1730969449928,-500.0,0.0003041,4]
[341539896,1730969449937,-2766.0,0.0003041,4]
[341539897,1730969449947,-500.0,0.0003041,4]
[341539898,1730969449956,-886.97,0.0003041,4]
[341539899,1730969449966,-908.83,0.0003041,4]
[341539900,1730969449975,-500.0,0.0003041,4]
[341539901,1730969449984,-500.0,0.0003041,4]
[341539902,1730969449993,-5351.93,0.0003041,4]
[341539903,1730969450003,-500.0,0.0003041,4]
[341539904,1730969450012,-679.24,0.0003041,4]
[341539905,1730969450021,-500.0,0.0003041,4]
[341539906,1730969450030,-947.56,0.0003041,4]
[341539907,1730969450040,-1054.44,0.0003041,4]
[341539908,1730969450049,-6848.96,0.0003041,4]
[341539909,1730969450058,-500.0,0.0003041,4]
[341539910,1730969450069,-920.75,0.0003041,4]
[341539911,1730969450078,-527.59,0.0003041,4]
[341539912,1730969450087,-500.0,0.0003041,4]
[341539913,1730969450096,-500.0,0.0003041,4]
[341539914,1730969450106,-1651.68,0.0003041,4]
[341539915,1730969450116,-500.0,0.0003041,4]
[341539916,1730969450125,-500.0,0.0003041,4]
[341539917,1730969450135,-2759.28,0.0003041,4]
[341539918,1730969450145,-500.0,0.0003041,4]
[341539919,1730969450155,-607.36,0.0003041,4]
[341539920,1730969450164,-627.91,0.0003041,4]
[341539921,1730969450173,-500.0,0.0003041,4]
[341539922,1730969450182,-500.0,0.0003041,4]
[341539923,1730969450191,-1628.19,0.0003041,4]
[341539924,1730969450201,-500.0,0.0003041,4]
[341539925,1730969450210,-500.0,0.0003041,4]
[341539926,1730969450219,-834.33,0.0003041,2]
[341539927,1730969450232,-500.0,0.0003041,4]
[341539928,1730969450244,-1384.75,0.0003041,4]
[341539929,1730969450254,-500.0,0.0003041,4]
[341539930,1730969450264,-500.0,0.0003041,4]
[341539931,1730969450274,-500.0,0.0003041,4]
[341539932,1730969450283,-523.43,0.0003041,4]
[341539933,1730969450293,-500.0,0.0003041,4]
[341539934,1730969450303,-500.0,0.0003041,4]
[341539935,1730969450314,-651.99,0.0003041,4]
[341539936,1730969450323,-729.77,0.0003041,4]
[341539937,1730969450333,-500.0,0.0003041,4]
[341539938,1730969450343,-1289.47,0.0003041,4]
[341539939,1730969450352,-500.0,0.0003041,4]
[341539940,1730969450362,-500.0,0.0003041,4]
[341539941,1730969450371,-500.0,0.0003041,4]
[341539942,1730969450381,-1102.78,0.0003041,4]
[341539943,1730969450391,-500.0,0.0003041,4]
[341539944,1730969450536,-2903.4,0.0003041,4]
[341539945,1730969450545,-835.89,0.0003041,4]
[341539946,1730969450556,-1983.81,0.0003041,4]
[341539947,1730969450567,-500.0,0.0003041,4]
[341539948,1730969450576,-5303.56,0.0003041,4]
[341539949,1730969450585,-537.39,0.0003041,4]
[341539950,1730969450595,-570.65,0.0003041,4]
[341539951,1730969450604,-500.0,0.0003041,4]
[341539952,1730969450615,-500.0,0.0003041,4]
[341539953,1730969450624,-500.0,0.0003041,4]
[341539954,1730969450635,-500.0,0.0003041,4]
[341539955,1730969450645,-509.8,0.0003041,4]
[341539956,1730969450654,-717.82,0.0003041,4]
[341539957,1730969450664,-500.0,0.0003041,4]
[341539958,1730969450673,-877.9,0.0003041,4]
[341539959,1730969450683,-500.0,0.0003041,4]
[341539960,1730969450692,-573.66,0.0003041,4]
[341539961,1730969450702,-1609.01,0.0003041,4]
[341539962,1730969450712,-500.0,0.0003041,4]
[341539963,1730969450721,-507.29,0.0003041,4]
[341539964,1730969450731,-500.0,0.0003041,4]
[341539965,1730969450741,-500.0,0.0003041,4]
[341539966,1730969450751,-844.28,0.0003041,4]
[341539967,1730969450761,-2454.97,0.0003041,4]
[341539968,1730969450771,-763.21,0.0003041,4]
[341539969,1730969450780,-500.0,0.0003041,4]
[341539970,1730969450794,-899.54,0.0003041,4]
[341539971,1730969450804,-500.0,0.0003041,4]
[341539972,1730969450815,-500.0,0.0003041,4]
[341539973,1730969450825,-172.42359319,0.0003041,4]
[341539974,1730969450835,-2131.88,0.0003041,4]
[341539975,1730969450844,-500.0,0.0003041,4]
[341539976,1730969450854,-749.75,0.0003041,4]
[341539977,1730969450865,-500.0,0.0003041,4]
[341539978,1730969450874,-500.0,0.0003041,4]
[341539979,1730969450884,-1028.73,0.0003041,4]
[341539980,1730969450893,-500.0,0.0003041,4]
[341539981,1730969450903,-710.27,0.0003041,4]
[341539982,1730969450912,-819.39,0.0003041,4]
[341539983,1730969450922,-546.67,0.0003041,4]
[341539984,1730969450931,-992.19,0.0003041,4]
[341539985,1730969450941,-2155.47,0.0003041,4]
[341539986,1730969450950,-500.0,0.0003041,4]
[341539987,1730969450959,-500.0,0.0003041,4]
[341539988,1730969450968,-151.0,0.0003041,7]
[341539989,1730969450978,-151.0,0.0003041,7]
[341539990,1730969450987,-1838.53,0.0003041,4]
[341539991,1730969450998,-872.75,0.0003041,4]
[341539992,1730969451008,-230.01138086,0.0003041,4]
[341539993,1730969451017,-500.0,0.0003041,4]
[341539994,1730969451027,-500.0,0.0003041,4]
[341539995,1730969451037,-500.0,0.0003041,4]
[341539996,1730969451046,-500.0,0.0003041,4]
[341539997,1730969451055,-500.0,0.0003041,4]
[341539998,1730969451065,-746.16,0.0003041,4]
[341539999,1730969451074,-500.0,0.0003041,4]
[341540000,1730969451084,-1927.53,0.0003041,4]
[341540001,1730969451093,-500.0,0.0003041,4]
[341540002,1730969451103,-500.0,0.0003041,4]
[341540003,1730969451112,-500.0,0.0003041,4]
[341540004,1730969451122,-500.0,0.0003041,4]
[341540005,1730969451132,-1142.68,0.0003041,4]
[341540006,1730969451141,-500.0,0.0003041,4]
[341540007,1730969451151,-1241.89,0.0003041,4]
[341540008,1730969451161,-500.0,0.0003041,4]
[341540009,1730969451171,-500.0,0.0003041,4]
[341540010,1730969451180,-500.0,0.0003041,4]
[341540011,1730969451189,-500.0,0.0003041,4]
[341540012,1730969451198,-850.2,0.0003041,4]
[341540013,1730969451208,-500.0,0.0003041,4]
[341540014,1730969451217,-4873.94,0.0003041,4]
[341540015,1730969451227,-545.62,0.0003041,4]
[341540016,1730969451236,-1105.49,0.0003041,4]
[341540017,1730969451246,-899.4,0.0003041,4]
[341540018,1730969451256,-500.0,0.0003041,4]
[341540019,1730969451265,-2333.11,0.0003041,4]
[341540020,1730969451275,-500.0,0.0003041,4]
[341540021,1730969451285,-500.0,0.0003041,4]
[341540022,1730969451295,-500.0,0.0003041,4]
[341540023,1730969451305,-864.25,0.0003041,4]
[341540024,1730969451315,-500.0,0.0003041,4]
[341540025,1730969451324,-156.71173527,0.0003041,4]
[341540026,1730969451334,-500.0,0.0003041,4]
[341540027,1730969451343,-1393.61,0.0003041,4]
[341540028,1730969451353,-500.0,0.0003041,4]
[341540029,1730969451363,-500.0,0.0003041,4]
[341540030,1730969451373,-500.0,0.0003041,4]
[341540031,1730969451383,-1624.53,0.0003041,4]
[341540032,1730969451392,-2405.02,0.0003041,4]
[341540033,1730969451402,-442.89723494,0.0003041,4]
[341540034,1730969451412,-1824.44,0.0003041,4]
[341540035,1730969451421,-500.0,0.0003041,4]
[341540036,1730969451430,-620.67,0.0003041,4]
[341540037,1730969451440,-393.62208023,0.0003041,4]
[341540038,1730969451451,-762.14,0.0003041,4]
[341540039,1730969451461,-3345.54,0.0003041,4]
[341540040,1730969451471,-590.76,0.0003041,4]
[341540041,1730969451480,-500.0,0.0003041,4]
[341540042,1730969451490,-1446.68,0.0003041,4]
[341540043,1730969451500,-847.87,0.0003041,4]
[341540044,1730969451509,-1249.14,0.0003041,4]
[341540045,1730969451519,-500.0,0.0003041,4]
[341540046,1730969451529,-2665.91,0.0003041,4]
[341540047,1730969451539,-1615.0,0.0003041,4]
[341540048,1730969451548,-500.0,0.0003041,4]
[341540049,1730969451559,-500.0,0.0003041,4]
[341540050,1730969451569,-500.0,0.0003041,4]
[341540051,1730969451579,-2300.5,0.0003041,4]
[341540052,1730969451589,-500.0,0.0003041,4]
[341540053,1730969451599,-648.28,0.0003041,4]
[341540054,1730969451608,-500.0,0.0003041,4]
[341540055,1730969451618,-500.0,0.0003041,4]
[341540056,1730969451628,-500.0,0.0003041,4]
[341540057,1730969451638,-220.28051612,0.0003041,4]
[341540058,1730969451649,-1286.65,0.0003041,4]
[341540059,1730969451658,-1604.98,0.0003041,4]
[341540060,1730969451668,-774.22,0.0003041,4]
[341540061,1730969451678,-509.56,0.0003041,4]
[341540062,1730969451688,-500.0,0.0003041,4]
[341540063,1730969451698,-500.0,0.0003041,4]
[341540064,1730969451708,-500.0,0.0003041,4]
[341540065,1730969451717,-919.53,0.0003041,4]
[341540066,1730969451727,-1725.9,0.0003041,4]
[341540067,1730969451737,-500.0,0.0003041,4]
[341540068,1730969451747,-500.0,0.0003041,4]
[341540069,1730969451758,-1390.79,0.0003041,4]
[341540070,1730969451768,-500.0,0.0003041,4]
[341540071,1730969451778,-1491.38,0.0003041,4]
[341540072,1730969451790,-3050.1,0.0003041,4]
[341540073,1730969451801,-500.0,0.0003041,4]
[341540074,1730969451811,-2834.8,0.0003041,4]
[341540075,1730969451821,-690.69,0.0003041,4]
[341540076,1730969451832,-500.0,0.0003041,4]
[341540077,1730969451843,-1684.17,0.0003041,4]
[341540078,1730969451853,-328.66689359,0.0003041,4]
[341540079,1730969451863,-500.0,0.0003041,4]
[341540080,1730969451874,-741.4,0.0003041,4]
[341540081,1730969451884,-500.0,0.0003041,4]
[341540082,1730969451894,-732.86,0.0003041,4]
[341540083,1730969451904,-516.88,0.0003041,4]
[341540084,1730969451914,-937.03,0.0003041,4]
[341540085,1730969451924,-500.0,0.0003041,4]
[341540086,1730969451934,-1027.57,0.0003041,4]
[341540087,1730969451944,-1924.1,0.0003041,4]
[341540088,1730969451953,-500.0,0.0003041,4]
[341540089,1730969451963,-2567.56,0.0003041,4]
[341540090,1730969451973,-238.584207,0.0003041,7]
[341540091,1730969451982,-238.584207,0.0003041,7]
[341540092,1730969451991,-500.0,0.0003041,4]
[341540093,1730969452001,-500.0,0.0003041,4]
[341540094,1730969452011,-500.0,0.0003041,4]
[341540095,1730969452020,-581.78,0.0003041,4]
[341540096,1730969452029,-1581.75,0.0003041,4]
[341540097,1730969452038,-238.584207,0.0003041,7]
[341540098,1730969452048,-238.584207,0.0003041,7]
[341540099,1730969452057,-1445.23,0.0003041,4]
[341540100,1730969452068,-4122.29,0.0003041,4]
[341540101,1730969452077,-4516.7,0.0003041,4]
[341540102,1730969452087,-500.0,0.0003041,4]
[341540103,1730969452096,-632.69,0.0003041,4]
[341540104,1730969452106,-500.0,0.0003041,4]
[341540105,1730969452115,-500.0,0.0003041,4]
[341540106,1730969452125,-500.0,0.0003041,4]
[341540107,1730969452134,-700.45,0.0003041,4]
[341540108,1730969452144,-579.18,0.0003041,4]
[341540109,1730969452154,-1033.38,0.0003041,4]
[341540110,1730969452164,-1314.03,0.0003041,4]
[341540111,1730969452173,-500.0,0.0003041,4]
[341540112,1730969452183,-500.0,0.0003041,4]
[341540113,1730969452193,-506.23,0.0003041,4]
[341540114,1730969452203,-500.0,0.0003041,4]
[341540115,1730969452212,-500.0,0.0003041,4]
[341540116,1730969452222,-500.0,0.0003041,4]
[341540117,1730969452231,-812.09,0.0003041,4]
[341540118,1730969452241,-886.0,0.0003041,4]
[341540119,1730969452251,-500.0,0.0003041,4]
[341540120,1730969452261,-500.0,0.0003041,4]
[341540121,1730969452271,-1117.84,0.0003041,4]
[341540122,1730969452280,-500.0,0.0003041,4]
[341540123,1730969452290,-500.0,0.0003041,4]
[341540124,1730969452300,-2914.42,0.0003041,4]
[341540125,1730969452309,-500.0,0.0003041,4]
[341540126,1730969452320,-500.0,0.0003041,4]
[341540127,1730969452330,-151.0,0.0003041,7]
[341540128,1730969452339,-151.0,0.0003041,7]
[341540129,1730969452349,-500.0,0.0003041,4]
[341540130,1730969452359,-2079.07,0.0003041,4]
[341540131,1730969452368,-518.39,0.0003041,4]
[341540132,1730969452378,-1648.26,0.0003041,4]
[341540133,1730969452387,-640.97607813,0.0003041,4]
[341540134,1730969452397,-1323.87,0.0003041,4]
[341540135,1730969452406,-500.0,0.0003041,4]
[341540136,1730969452417,-534.47,0.0003041,4]
[341540137,1730969452427,-500.0,0.0003041,4]
[341540138,1730969452438,-500.0,0.0003041,4]
[341540139,1730969452448,-500.0,0.0003041,4]
[341540140,1730969452458,-1755.77,0.0003041,4]
[341540141,1730969452467,-770.8,0.0003041,4]
[341540142,1730969452476,-200.0,0.00030435,2]
[341540143,1730969452486,-1079.94861694,0.00030458,2]
[341540144,1730969452495,-1079.94861693,0.00030458,2]
[341540145,1730969452505,-501.01282483,0.00030473,5]
[341540146,1730969452514,-366.01012499,0.00030473,5]
[341540147,1730969452523,-500.0,0.00030473,5]
[341540148,1730969452533,-500.0,0.00030473,2]
[341540149,1730969452543,-500.0,0.00030473,5]
[341540150,1730969452553,-500.0,0.00030473,5]
[341540151,1730969452563,-500.0,0.00030473,5]
[341540152,1730969452574,-500.0,0.00030473,5]
[341540153,1730969452583,-500.0,0.00030473,5]
[341540154,1730969452593,-500.0,0.00030473,5]
[341540155,1730969452603,-500.0,0.00030473,5]
[341540156,1730969452613,-500.0,0.00030473,5]
[341540157,1730969452623,-358.31356179,0.00030473,5]
[341540158,1730969452633,-500.0,0.00030499,4]
[341540159,1730969452642,-500.0,0.00030499,4]
[341540160,1730969452652,-1019.56,0.00030499,4]
[341540161,1730969452663,-500.0,0.00030499,4]
[341540162,1730969452673,-72246.358047,0.000305,2]
[341540163,1730969452683,-151.0,0.000305,7]
[341540164,1730969452693,-306.395862,0.000305,7]
[341540165,1730969452703,-306.395862,0.000305,7]
[341540166,1730969452713,-151.0,0.000305,7]
[341540167,1730969452990,-200.035982,0.000305,7]
[341540168,1730969453051,-200.035982,0.000305,7]
[341540169,1730969453061,-151.0,0.000305,7]
[341540170,1730969453071,-238.584207,0.000305,7]
[341540171,1730969453081,-238.584207,0.000305,7]
[341540172,1730969453091,-151.0,0.000305,7]
[341540173,1730969453100,-552.65,0.00030683,4]
[341540174,1730969453110,-552.65,0.00030683,4]
[341540175,1730969453119,-552.65,0.00030683,4]
[341540176,1730969453129,-500.0,0.00030683,4]
[341540177,1730969453138,-500.0,0.00030683,4]
[341540178,1730969453148,-500.0,0.00030683,4]
[341540179,1730969453158,-500.0,0.00030683,4]
[341540180,1730969453168,-1019.56,0.00030683,4]
[341540181,1730969453177,-1019.56,0.00030683,4]
[341540182,1730969453187,-500.0,0.00030683,4]
[341540183,1730969453197,-500.0,0.00030683,4]
[341540184,1730969453206,-1271.9,0.00030683,4]
[341540185,1730969453216,-1271.9,0.00030683,4]
[341540186,1730969453226,-1271.9,0.00030683,4]
[341540187,1730969453235,-821.09,0.00030683,4]
[341540188,1730969453246,-821.09,0.00030683,4]
[341540189,1730969453256,-821.09,0.00030683,4]
[341540190,1730969453266,-4515.19424235,0.00030683,15]
[341540191,1730969453275,-275.91104,0.00030684,4]
[341540192,1730969453285,-268.946191,0.00030684,4]
[341540193,1730969453295,-500.0,0.00030684,4]
[341540194,1730969453305,-500.0,0.00030684,4]
[341540195,1730969453315,-500.0,0.00030684,4]
[341540196,1730969453325,-500.0,0.00030684,4]
[341540197,1730969453336,-500.0,0.00030684,4]
[341540198,1730969453345,-500.0,0.00030684,4]
[341540199,1730969453355,-500.0,0.00030684,4]
[341540200,1730969453364,-500.0,0.00030684,4]
[341540201,1730969453374,-500.0,0.00030684,4]
[341540202,1730969453383,-500.0,0.00030684,4]
[341540203,1730969453393,-500.0,0.00030684,4]
[341540204,1730969453403,-175.61145557,0.00030684,4]
[341540205,1730969453413,-885.59,0.00030684,4]
[341540206,1730969453422,-834.95,0.00030684,4]
[341540207,1730969453432,-376.20971342,0.00030684,4]
[341540208,1730969453442,-786.25,0.00030684,4]
[341540209,1730969453452,-255.65676329,0.00030684,4]
[341540210,1730969453462,-500.0,0.00030684,4]
[341540211,1730969453472,-500.0,0.00030684,4]
[341540212,1730969453482,-500.0,0.00030684,4]
[341540213,1730969453492,-311.42,0.00030684,4]
[341540214,1730969453501,-314.44450376,0.00030684,4]
[341540215,1730969453510,-500.0,0.00030684,4]
[341540216,1730969453519,-500.0,0.00030684,4]
[341540217,1730969453529,-500.0,0.00030684,4]
[341540218,1730969453539,-500.0,0.00030684,4]
[341540219,1730969453549,-500.0,0.00030684,4]
[341540220,1730969453560,-500.55,0.00030684,4]
[341540221,1730969453571,-510.87464155,0.00030684,4]
[341540222,1730969453580,-500.0,0.00030684,4]
[341540223,1730969453590,-500.0,0.00030684,4]
[341540224,1730969453600,-523.44,0.00030684,4]
[341540225,1730969453610,-500.0,0.00030684,4]
[341540226,1730969453620,-500.0,0.00030684,4]
[341540227,1730969453629,-500.0,0.00030684,4]
[341540228,1730969453639,-500.0,0.00030684,4]
[341540229,1730969453649,-500.0,0.00030684,4]
[341540230,1730969453658,-500.0,0.00030684,4]
[341540231,1730969453668,-500.0,0.00030684,4]
[341540232,1730969453678,-500.0,0.00030684,4]
[341540233,1730969453687,-500.0,0.00030684,4]
[341540234,1730969453697,-500.0,0.00030684,4]
[341540235,1730969453707,-500.0,0.00030684,4]
[341540236,1730969453717,-500.0,0.00030684,4]
[341540237,1730969453727,-550.33,0.00030684,4]
[341540238,1730969453737,-500.0,0.00030684,4]
[341540239,1730969453748,-543.96,0.00030684,4]
[341540240,1730969453757,-500.0,0.00030684,4]
[341540241,1730969453767,-779.74,0.00030684,4]
[341540242,1730969453776,-857.03,0.00030684,4]
[341540243,1730969453788,-500.0,0.00030684,4]
[341540244,1730969453798,-522.99,0.00030684,4]
[341540245,1730969453808,-856.82,0.00030684,4]
[341540246,1730969453817,-500.0,0.00030684,4]
[341540247,1730969453827,-682.83,0.00030684,4]
[341540248,1730969453837,-552.38,0.00030684,4]
[341540249,1730969453846,-501.72,0.00030684,4]
[341540250,1730969453856,-814.48,0.00030684,4]
[341540251,1730969453867,-692.1,0.00030684,4]
[341540252,1730969453878,-500.0,0.00030684,4]
[341540253,1730969453887,-500.0,0.00030684,4]
[341540254,1730969453897,-500.0,0.00030684,4]
[341540255,1730969453907,-559.55,0.00030684,4]
[341540256,1730969453916,-1935.77,0.00030684,4]
[341540257,1730969453927,-500.0,0.00030684,4]
[341540258,1730969453936,-500.0,0.00030684,4]
[341540259,1730969453946,-500.0,0.00030684,4]
[341540260,1730969453956,-500.0,0.00030684,4]
[341540261,1730969453966,-500.0,0.00030684,4]
[341540262,1730969453975,-500.0,0.00030684,4]
[341540263,1730969453985,-500.0,0.00030684,4]
[341540264,1730969453994,-500.0,0.00030684,4]
[341540265,1730969454004,-1495.4,0.00030684,4]
[341540266,1730969454013,-739.29,0.00030684,4]
[341540267,1730969454023,-500.0,0.00030684,4]
[341540268,1730969454032,-500.0,0.00030684,4]
[341540269,1730969454042,-500.0,0.00030684,4]
[341540270,1730969454051,-500.0,0.00030684,4]
[341540271,1730969454061,-500.0,0.00030684,4]
[341540272,1730969454072,-500.0,0.00030684,4]
[341540273,1730969454084,-729.35,0.00030684,4]
[341540274,1730969454093,-697.85,0.00030684,4]
[341540275,1730969454103,-503.93,0.00030684,4]
[341540276,1730969454113,-500.0,0.00030684,4]
[341540277,1730969454122,-500.0,0.00030684,4]
[341540278,1730969454132,-500.0,0.00030684,4]
[341540279,1730969454141,-594.09,0.00030684,4]
[341540280,1730969454151,-500.0,0.00030684,4]
[341540281,1730969454160,-672.86,0.00030684,4]
[341540282,1730969454170,-1245.64,0.00030684,4]
[341540283,1730969454179,-849.98,0.00030684,4]
[341540284,1730969454188,-892.99,0.00030684,4]
[341540285,1730969454197,-500.0,0.00030684,4]
[341540286,1730969454207,-500.0,0.00030684,4]
[341540287,1730969454216,-500.0,0.00030684,4]
[341540288,1730969454226,-500.0,0.00030684,4]
[341540289,1730969454235,-500.0,0.00030684,4]
[341540290,1730969454244,-1326.41,0.00030684,4]
[341540291,1730969454253,-1385.2,0.00030684,4]
[341540292,1730969454262,-581.9,0.00030684,4]
[341540293,1730969454271,-500.0,0.00030684,4]
[341540294,1730969454281,-500.0,0.00030684,4]
[341540295,1730969454290,-500.0,0.00030684,4]
[341540296,1730969454299,-500.0,0.00030684,4]
[341540297,1730969454308,-500.0,0.00030684,4]
[341540298,1730969454321,-498.57817145,0.00030684,4]
[341540299,1730969454330,-539.97,0.00030684,4]
[341540300,1730969454339,-500.0,0.00030684,4]
[341540301,1730969454348,-500.0,0.00030684,4]
[341540302,1730969454357,-500.0,0.00030684,4]
[341540303,1730969454367,-500.0,0.00030684,4]
[341540304,1730969454376,-500.0,0.00030684,4]